Cogmind - Beta 12 @@@ ROGUE MODE // 2023.07.03 @ 06:41:15 Player: Benny Result: Smashed by cave-in Performance ------------- Evolutions (0) 0 Regions Visited (1) 200 Robots Destroyed (8) 40 Value Destroyed (220) 220 Prototype IDs (0) 0 Alien Tech Used (0) 0 Bonus (0) 0 TOTAL SCORE: 460 Bonus ------- None Cogmind --------- Core Integrity 0/250 Matter 250/300 Energy 246/250 System Corruption 8% Temperature Cool (2) Movement Treading (160) Location -10/Materials Parts ------- > --- POWER (1) -------- Ion Engine > --- PROPULSION (2) --- Improved Treads Improved Treads > --- UTILITY (2) ------ Large Storage Unit Structural Scanner > --- WEAPON (2) ------- Light Assault Rifle Mini Grenade Launcher > --- INVENTORY (15) --- Light Ion Engine Aluminum Leg Aluminum Leg Wheel Wheel Large Storage Unit Visual Processing Unit Terrain Scanner Weapon Shielding Weapon Shielding Hardened Light Armor Plating Hardened Light Armor Plating Tractor Beam Peak State ------------ > --- POWER ------------ Ion Engine > --- PROPULSION ------- Improved Treads Improved Treads > --- UTILITY ---------- Large Storage Unit Structural Scanner > --- WEAPON ----------- Light Assault Rifle Mini Grenade Launcher > --- INVENTORY -------- Light Ion Engine Aluminum Leg Aluminum Leg Wheel Wheel Large Storage Unit Visual Processing Unit Terrain Scanner Weapon Shielding Weapon Shielding Hardened Light Armor Plating Hardened Light Armor Plating Tractor Beam [Rating: 11] Favorites ----------- Power Light Ion Engine Engine Light Ion Engine Propulsion Aluminum Leg Treads Improved Treads Leg Aluminum Leg Utility Large Storage Unit Device Structural Scanner Storage Large Storage Unit Weapon Light Assault Rifle Energy Gun EM Pulse Gun Ballistic Gun Light Assault Rifle Launcher Grenade Launcher Build | -11 -10 ------- Run | Jun Mat Slots Evolved . | . . Power . | . . Propulsion . | . . Utility . | . . Weapon . | . . Parts Attached 16 | 5 11 Power 2 | 1 1 Engine 2 | 1 1 Core . | . . Reactor . | . . Propulsion 7 | 2 5 Treads 3 | . 3 Leg 4 | 2 2 Wheel . | . . Hover . | . . Flight . | . . Utility 2 | . 2 Device 1 | . 1 Storage 1 | . 1 Processor . | . . Hackware . | . . Protection . | . . Artifact . | . . Weapon 5 | 2 3 Energy Gun 2 | 1 1 Energy Cannon . | . . Ballistic Gun 1 | 1 . Ballistic Cannon . | . . Launcher 2 | . 2 Special Weapon . | . . Impact Weapon . | . . Slashing Weapon . | . . Piercing Weapon . | . . Special Melee Weapon . | . . Unidentified Prototypes . | . . Parts Lost 1 | . 1 Power . | . . Propulsion . | . . Utility . | . . Weapon 1 | . 1 Highest Loss Streak 1 | . 1 To Critical Strikes . | . . Average Slot Usage (%) 92 | . 92 Engine 14 | . 14 Treads 6 | . 6 Leg 21 | . 21 Device 9 | . 9 Storage 12 | . 12 Energy Gun 11 | . 11 Ballistic Gun 14 | . 14 Launcher 1 | . 1 Naked Turns . | . . Heaviest Build 29 | 6 29 Greatest Support 46 | 20 46 Greatest Overweight (x) 1 | . 1 Average Overweight (x) . | . . Largest Inventory Capacity 15 | 5 15 Average Capacity 13 | 5 13 Most Carried 15 | 4 15 Average Carried 9 | 2 9 Final Capacity 15 | 5 15 Final Carried 13 | 3 13 Class Distribution -------------------- 100% | Mutant Dominant Class ---------------- Mutant | -10/Materials Resources | -11 -10 ----------- Run | Jun Mat Matter Collected 346 | 252 94 Remotely . | . . Salvage Created 198 | 34 164 Parts 15 | . 15 Haulers Intercepted . | . . Recyclers Shooed . | . . Parts Field Recycled . | . . Retrieved Matter . | . . Parts Self-Destructed . | . . Prevented . | . . Kills | -11 -10 ------- Run | Jun Mat Combat Hostiles Destroyed 8 | 1 7 Guns 4 | . 4 AOE 4 | 1 3 Classes Destroyed 2 | 1 1 Swarmer 3 | . 3 Grunt 5 | 1 4 Best Kill Streak 3 | 1 3 Combat Bots Only 3 | 1 3 Max Kills in Single Turn 3 | 1 3 Gunslinging . | . . Exploded 3 | 1 3 Melee . | . . Uniques/NPCs Destroyed . | . . Combat | -11 -10 -------- Run | Jun Mat Damage Taken 807 | 32 775 Core 257 | . 257 Absorbed by Shields . | . . Core Remaining (%) 100 | 100 . Volleys Fired 26 | 2 24 Largest 2 | 2 2 Hottest 70 | 60 70 Shots Fired 45 | 4 41 Gun 43 | 4 39 Cannon . | . . Launcher 2 | . 2 Special . | . . Kinetic 24 | 2 22 Thermal 6 | . 6 Explosive 2 | . 2 Electromagnetic 13 | 2 11 Robot Hit Streak 8 | 3 8 Robot Miss Streak 3 | 1 3 Penetration Max . | . . Secondary Targets . | . . Shots Hit Robots 26 | 3 23 Core Hits 13 | 2 11 Critical Kills . | . . Critical Parts Destroyed . | . . Critical Strikes 1 | . 1 Burn 1 | . 1 Melee Attacks . | . . Impact . | . . Slashing . | . . Piercing . | . . Sneak Attacks . | . . Combat Hostiles . | . . Follow-up Attacks . | . . Damage Inflicted 442 | 80 362 Guns 268 | 32 236 Cannons . | . . Explosions 171 | 48 123 Melee . | . . Ramming 3 | . 3 Kinetic 145 | 7 138 Thermal 96 | 48 48 Explosive 123 | . 123 Electromagnetic 75 | 25 50 Impact . | . . Slashing . | . . Piercing . | . . Highest Corruption 8 | . 8 Average Corruption 3 | . 3 Corruption Purged . | . . Corruption Blocked . | . . Effects 9 | . 9 Message Errors 6 | . 6 Parts Rejected 1 | . 1 Data Loss (minor) 1 | . 1 Weapon Failures 1 | . 1 Overload Shots . | . . Overflow Damage . | . . Projectiles . | . . Explosions . | . . Melee . | . . Knockbacks . | . . Impact . | . . Kinetic . | . . Secondary . | . . Self-Inflicted Damage 33 | . 33 Shots 2 | . 2 Rammed 1 | . 1 Targets Rammed 1 | . 1 Kicked . | . . Crushed . | . . Highest Temperature 148 | 32 148 Average Temperature 65 | 19 69 Received Heat Transfer 210 | 18 192 Siege Activations . | . . Robots Corrupted . | . . Combat Hostiles . | . . Parts Fried . | . . Impact Corruptions . | . . Robots Melted . | . . Combat Hostiles . | . . Parts Melted 1 | 1 . Heat Transferred 272 | 50 222 Parts Sabotaged . | . . Parts Stolen . | . . Parts Stripped . | . . Power Chain Reactions 1 | 1 . Missiles Intercepted . | . . Alert | -11 -10 ------- Run | Jun Mat Peak Influence 262 | 20 262 Initial 13 | . 13 Average 77 | 3 86 Maximum Alert Level 1 | . 1 Low Security (%) 72 | 100 68 Level 1 27 | . 31 Level 2 . | . . Level 3 . | . . Level 4 . | . . Level 5 . | . . High Security . | . . Max Security . | . . Squads Dispatched 2 | . 2 Investigation 1 | . 1 Extermination . | . . Reinforcement 1 | . 1 Assault . | . . Garrison . | . . Intercept . | . . Searches Triggered . | . . Construction Impeded . | . . Haulers Reinforced . | . . Active Scanning Responses . | . . Cargo Convoy Interrupts . | . . Stealth | -11 -10 --------- Run | Jun Mat Distress Signals . | . . Communications Jammed . | . . Distress Signals . | . . Times Spotted 12 | 1 11 Peak Tracking Total 3 | 1 3 Tactical Retreats . | . . Traps | -11 -10 ------- Run | Jun Mat Traps Triggered 2 | . 2 Indirectly . | . . Trap Hack Attempts . | . . Triggered . | . . Disarmed . | . . Reprogrammed . | . . Reused . | . . Traps Extracted . | . . Installed . | . . Triggered . | . . Machines | -11 -10 ---------- Run | Jun Mat Machines Disabled 2 | . 2 Max in Single Turn 2 | . 2 Machines Repaired . | . . Machines Sabotaged . | . . Overloaded Fab Kills . | . . Hacking | -11 -10 --------- Run | Jun Mat Machines Accessed 4 | . 4 Terminals 3 | . 3 Fabricators . | . . Repair Stations . | . . Recycling Units 1 | . 1 Scanalyzers . | . . Garrison Access . | . . Total Hacks 12 | . 12 Successful 10 | . 10 Failed 2 | . 2 Catastrophic . | . . Database Lockouts . | . . Manual . | . . Terminals 10 | . 10 Fabricators . | . . Repair Stations . | . . Recycling Units 2 | . 2 Scanalyzers . | . . Garrison Access . | . . Terminal Hacks 8 | . 8 Record 3 | . 3 Branch Access Points 1 | . 1 Alert Level 2 | . 2 Reinforcement Status 1 | . 1 Hauler Manifests 1 | . 1 Fabricator Hacks . | . . Repair Station Hacks . | . . Recycling Unit Hacks 2 | . 2 Report Inventory 1 | . 1 Retrieve Components 1 | . 1 Scanalyzer . | . . Garrison Access Hacks . | . . Unauthorized Hacks . | . . Terminals . | . . Fabricators . | . . Repair Stations . | . . Recycling Units . | . . Scanalyzers . | . . Garrison Access . | . . Data Cores Recovered . | . . Used . | . . Hacking Detections 3 | . 3 Full Trace Events 1 | . 1 Feedback Events . | . . Feedback Blocked . | . . Robot Schematics Acquired . | . . Robots Built . | . . Authchips . | . . Time . | . . Total Robot Build Rating . | . . Part Schematics Acquired . | . . Parts Built . | . . Authchips . | . . Time . | . . Total Part Build Rating . | . . Parts Repaired . | . . Time . | . . Parts Recycled . | . . Recycled Matter . | . . Retrieved Matter . | . . Retrieved Components 3 | . 3 Parts Scanalyzed . | . . Part Schematics Acquired . | . . Parts Damaged . | . . Bothacking | -11 -10 ------------ Run | Jun Mat Used RIF Installer . | . . Robots Hacked . | . . Non-combat . | . . Combat . | . . Robot Hacks Applied . | . . Relay Couplers Released . | . . Fabnet Peak Effective % . | . . Robots Rewired . | . . Allies Hacked . | . . Hacks Repelled . | . . Allies | -11 -10 -------- Run | Jun Mat Total Allies . | . . Largest Group . | . . Highest-Rated Group . | . . Highest-Rated Ally . | . . Total Orders . | . . Ally Attacks . | . . Total Damage . | . . Kills . | . . Allies Corrupted . | . . Allies Melted . | . . Intel | -11 -10 ------- Run | Jun Mat Robot Analysis Total . | . . Derelict Logs Recovered . | . . Drone Launches . | . . Drone Recoveries . | . . Exploration | -11 -10 ------------- Run | Jun Mat Turns Passed 889 | 93 796 Spaces Moved 420 | 72 348 Core 16 | 16 . Treads 80 | . 80 Legs 324 | 56 268 Wheels . | . . Hover . | . . Flight . | . . Fastest Speed 50 | 50 120 Average Speed 161 | 104 172 Slowest Speed 240 | 120 240 Overloaded Moves . | . . Propulsion Burnouts . | . . Robots Hopped . | . . Cave-ins Triggered 2 | . 2 Exploration Rate (%) 21 | 5 37 Regions Visited 1 Branch Regions . Pre-discovered Areas . | . . Known Exits Taken . | . . Unknown Exits Taken 1 | 1 . Scrap Searched . | . . Spaces Dug 9 | . 9 Terrain Destroyed 52 | . 52 Melee . | . . Projectile . | . . AOE 52 | . 52 Terrain Rammed . | . . Walls Destroyed . | . . Machines Disabled . | . . Actions | -11 -10 --------- Run | Jun Mat Total 591 | 86 505 Wait 90 | . 90 Move 418 | 71 347 Hop . | . . Pick Up 31 | 8 23 Fast Attach . | . . Attach 9 | 5 4 Detach . | . . Swap 7 | . 7 Drop 9 | . 9 Fire 26 | 2 24 Melee . | . . Ram . | . . Kick . | . . Crush 1 | . 1 Escape Stasis . | . . Rewire . | . . Trap . | . . Miscellaneous . | . . Route ------- -11/Junkyard -10/Materials (discovered 1 exit: *Min) History --------- Turn | Location | Event 2 | -11/Junkyard | Met Revision 17 69 | -11/Junkyard | Discovered new exit (range 8) 94 | -11/Junkyard | Entered Materials 309 | -10/Materials | Build established: Mutant 452 | -10/Materials | Discovered new exit (range 13) 515 | -10/Materials | Identified exit to Mines 859 | -10/Materials | Crushed by falling debris 859 | -10/Materials | Core integrity fell below 50% 859 | -10/Materials | Core integrity fell below 20% 890 | -10/Materials | Crushed by falling debris 890 | -10/Materials | Smashed by cave-in Last Messages --------------- MYX3M3#IC8/ Crushed by falling debris. [Achievement: Unlikely Earthworm] Med. Laser destroyed. System corrupted by crushing effect (+5). G-34 Mercenary heat spikes uncontrollably. G-34 Mercenary overheating. G-34 Mercenary heat damages Aluminum Leg, Aluminum Leg, Sml. Laser. G-34 Mercenary overheating. System corrupted: Imp. Treads rejected. G-34 Mercenary destroyed. The unstable cave ceiling collapses. Sml. Laser crushed. Acquired 33 matter. Acquired Imp. Treads. The unstable cave ceiling collapses. Crushed by falling debris. [Achievement: First Step to Greatness] Map ----- +----------------------------------------------------+ | ?????????????????????????????????????????? | | ?????????????????????????????????????????? | | ?????????????????????????????????????????? | | ?????????????????????????????????????????? | | ?????????????????????????????????????????? | | ?????????????????????????????????????????? | | ?????????????????????????????????????????? | | ?????????????????????????????????????????? | | ?????????????????????????????????????????? | | ?????????????????????????????????????????? | | ?????????????????????????????????????????? | | ?????????????????????????????????????????? | | ?????????????????????????????????????????? | | ?????????????????????????????????????????? | | ????????????#######??????????????????????? | | ????????????#######??????????????????????? | | ????########## !!##??????????????????????? | | ????########## ##??????????????????????? | | ###### |]##??????????????????????? | | ###### ####### ]]##??????????????????????? | | ##= ####### !!##??????????????????????? | | ##= ####### !!##? ?????????????????? | | ##!! ############?#+##?????????????????? | | ##! # ###### ##?????????????????? | | ##! + ###### ##?????????????????? | | ##!! # ##@ ##?????????????????? | | ###### ###+##### ###### ????????????? | | ###### ##" " ## ###### "???????????? | | ????## # #+######### # # "???????????? | | ????## # # # # T / ????????????? | | ????## # # " # # ????????????? | | ????## ### " ###????????????? | | ????## ### " #####?## ??? | | ????## ### # #####?## "?? | | ???? # ### # ##?## !?? | | ???? # ### " ##### ##?## > ""? | | ???? # ### % " ##### ???## !?? | | ???? # ########/#### ###??????## "?? | | ???? # ######## ### ##???????# "# | | ???? + ##???????## #### | | ???? # ##???????## ## " | | ???? # ##???????## ## | | ???? # #### ####### ##?????? ## ## | | ????##+#### ######### ##### ## ## | | ???? #????????#### #########+## ##+ | | ???????????????????## | | ???????????????????## | | ??????????????##########% "" | | ??????????????########## % Y" # ## | | ??????????????## ## %!"" ###+#### | +----------------------------------------------------+ Best States ------------- Heat Dissipation 25 Energy Generation 10 Energy Capacity 250 Matter Stores 300 Matter Capacity 300 Sight Range 16 Terrain Scan Density 10 Evasion (%) 55 Recoil Reduction 2 Item Schematics ----------------- None Robot Schematics ------------------ None Fabricated ------------ Nothing Alien Tech Used ----------------- None Achievements -------------- First Step to Greatness One Hack Too Far Shopping List Uninvited Guest Unlikely Earthworm Challenges ------------ None Game ------ Seed HypercooledAlertMapper Manual? 0 Play Time 01:00:25 Cumulative 1.9 hours Start 2023.06.30 @ 10:27:03 End 2023.07.03 @ 06:41:15 Sessions 8 Manual Loads 0 Difficulty Rogue Special Mode None Game No. 1 Rogue 1 Adventurer 0 Explorer 0 Win Type - Total 0 Types 0/0/0/0/0/0/0/0/0 Lore% 0 Gallery% 1 Achievement% 1 Wizard Run 0 Options --------- ASCII 0 Keyboard 0 Movement Numpad Keybinds 0 Fullscreen 1 Font 18/X11 Map View 76x50 Tactical HUD 0 Map Filters NONE Filters NONE Steam 1 RUN: c41de071-ef20-4a44-8e31-f70850d1754f